[Event "Schack-SM 2024: Mastarklassen-elit"]
[Site "Fortnox Arena, Hejaregatan 5, Vaxjo, Sweden"]
[Date "2024.07.07"]
[Round "9.1"]
[White "Olsson, William"]
[Black "Akesson, Ralf"]
[Result "0-1"]
[TimeControl "90 minutes for 40 moves + 30 minutes for the rest of the game + 30 seconds per move from move one."]
[WhiteTitle "IM"]
[BlackTitle "GM"]
[WhiteElo "2363"]
[BlackElo "2360"]

1. c4 {[%emt 00:26:36]} c5 {[%clk 01:27:41]} {[%emt 00:00:14]} 2. g3 {[%clk
01:30:33]} {[%emt 00:00:57]} g6 {[%clk 01:26:59]} {[%emt 00:01:11]} 3. Bg2
{[%clk 01:30:51]} {[%emt 00:00:13]} Bg7 {[%clk 01:27:24]} {[%emt 00:00:04]} 4.
Nc3 {[%clk 01:31:17]} {[%emt 00:00:06]} Nc6 {[%clk 01:27:40]} {[%emt 00:00:13]}
5. a3 {[%clk 01:30:18]} {[%emt 00:01:30]} b6 {[%clk 01:24:24]} {[%emt
00:03:45]} 6. e4 {[%clk 01:28:36]} {[%emt 00:02:13]} Bb7 {[%clk 01:15:46]}
{[%emt 00:09:07]} 7. Nge2 {[%clk 01:28:07]} {[%emt 00:00:58]} d6 {[%clk
01:16:05]} {[%emt 00:00:13]} 8. O-O {[%clk 01:27:54]} {[%emt 00:00:42]} e6
{[%clk 01:13:38]} {[%emt 00:02:57]} 9. d3 {[%clk 01:26:58]} {[%emt 00:01:27]}
Nge7 {[%clk 01:13:57]} {[%emt 00:00:10]} 10. Rb1 {[%clk 01:26:38]} {[%emt
00:00:50]} O-O {[%clk 01:13:44]} {[%emt 00:00:43]} 11. Be3 {[%clk 01:24:48]}
{[%emt 00:02:21]} Nd4 {[%clk 01:12:59]} {[%emt 00:01:14]} 12. b4 {[%clk
01:19:30]} {[%emt 00:05:48]} Qd7 {[%clk 01:12:33]} {[%emt 00:00:55]} 13. Qd2
{[%clk 01:18:31]} {[%emt 00:01:30]} Nec6 {[%clk 01:08:03]} {[%emt 00:04:59]} 14.
Bh6 {[%clk 01:13:16]} {[%emt 00:05:46]} Bxh6 {[%clk 00:49:02]} {[%emt
00:19:30]} 15. Qxh6 {[%clk 01:12:51]} {[%emt 00:00:56]} f6 {[%clk 00:49:10]}
{[%emt 00:00:21]} 16. Qd2 {[%clk 01:11:22]} {[%emt 00:02:00]} Rae8 {[%clk
00:43:50]} {[%emt 00:05:49]} 17. Kh1 {[%clk 00:59:20]} {[%emt 00:12:33]} Nxe2
{[%clk 00:36:14]} {[%emt 00:08:05]} 18. Nxe2 {[%clk 00:59:39]} {[%emt
00:00:12]} e5 {[%clk 00:36:22]} {[%emt 00:00:22]} 19. f4 {[%clk 00:53:24]}
{[%emt 00:06:45]} Nd4 {[%clk 00:33:58]} {[%emt 00:02:55]} 20. Nxd4 {[%clk
00:52:46]} {[%emt 00:01:07]} cxd4 {[%clk 00:27:56]} {[%emt 00:06:31]} 21. f5
{[%clk 00:52:59]} {[%emt 00:00:18]} g5 {[%clk 00:27:39]} {[%emt 00:00:46]} 22.
b5 {[%clk 00:49:51]} {[%emt 00:03:39]} Ra8 {[%clk 00:26:31]} {[%emt 00:01:38]}
23. Rb3 {[%clk 00:46:56]} {[%emt 00:03:25]} Qc7 {[%clk 00:23:33]} {[%emt
00:03:29]} 24. Rfb1 {[%clk 00:42:47]} {[%emt 00:04:40]} Rfb8 {[%clk 00:09:53]}
{[%emt 00:14:08]} 25. Bf3 {[%clk 00:37:47]} {[%emt 00:05:31]} a5 {[%clk
00:09:27]} {[%emt 00:00:57]} 26. bxa6 {[%clk 00:37:16]} {[%emt 00:01:01]} Rxa6
{[%clk 00:09:50]} {[%emt 00:00:06]} 27. h4 {[%clk 00:36:05]} {[%emt 00:01:41]}
h6 {[%clk 00:08:59]} {[%emt 00:01:20]} 28. Kg1 {[%clk 00:29:27]} {[%emt
00:07:09]} Bc6 {[%clk 00:09:04]} {[%emt 00:00:25]} 29. Bh5 {[%clk 00:28:22]}
{[%emt 00:01:34]} Ba4 {[%clk 00:03:53]} {[%emt 00:05:42]} 30. R3b2 {[%clk
00:28:23]} {[%emt 00:00:29]} Be8 {[%clk 00:03:56]} {[%emt 00:00:27]} 31. Bxe8
{[%clk 00:28:29]} {[%emt 00:00:24]} Rxe8 {[%clk 00:04:24]} {[%emt 00:00:03]} 32.
a4 {[%clk 00:27:31]} {[%emt 00:01:27]} Rea8 {[%clk 00:04:29]} {[%emt 00:00:24]}
33. hxg5 {[%clk 00:27:25]} {[%emt 00:00:37]} hxg5 {[%clk 00:04:52]} {[%emt
00:00:07]} 34. Qh2 {[%clk 00:27:47]} {[%emt 00:00:08]} Rxa4 {[%clk 00:04:23]}
{[%emt 00:00:59]} 35. Rxb6 {[%clk 00:23:23]} {[%emt 00:04:54]} Qxb6 {[%clk
00:04:07]} {[%emt 00:00:46]} 0-1

[Event "Schack-SM 2024: Mastarklassen-elit"]
[Site "Fortnox Arena, Hejaregatan 5, Vaxjo, Sweden"]
[Date "2024.07.07"]
[Round "9.2"]
[White "Sorensen, Hampus"]
[Black "Arman, Deniz"]
[Result "1-0"]
[TimeControl "90 minutes for 40 moves + 30 minutes for the rest of the game + 30 seconds per move from move one."]
[WhiteTitle "IM"]
[BlackTitle "FM"]
[WhiteElo "2404"]
[BlackElo "2343"]

1. d4 {[%clk 01:30:53]} {[%emt 00:00:05]} Nf6 {[%clk 01:19:33]} {[%emt
00:11:27]} 2. c4 {[%clk 01:31:09]} {[%emt 00:00:15]} g6 {[%clk 01:19:56]}
{[%emt 00:00:08]} 3. Nc3 {[%clk 01:31:20]} {[%emt 00:00:19]} d5 {[%clk
01:20:21]} {[%emt 00:00:04]} 4. cxd5 {[%clk 01:31:33]} {[%emt 00:00:18]} Nxd5
{[%clk 01:17:40]} {[%emt 00:03:12]} 5. e4 {[%clk 01:31:57]} {[%emt 00:00:04]}
Nxc3 {[%clk 01:18:06]} {[%emt 00:00:04]} 6. bxc3 {[%clk 01:32:25]} {[%emt
00:00:03]} Bg7 {[%clk 01:18:30]} {[%emt 00:00:06]} 7. Qa4+ {[%clk 01:32:50]}
{[%emt 00:00:05]} c6 {[%clk 01:17:19]} {[%emt 00:01:40]} 8. Nf3 {[%clk
01:22:47]} {[%emt 00:10:34]} O-O {[%clk 01:16:35]} {[%emt 00:01:12]} 9. Qa3
{[%clk 01:18:26]} {[%emt 00:04:53]} e5 {[%clk 00:54:05]} {[%emt 00:23:00]} 10.
Nxe5 {[%clk 01:10:34]} {[%emt 00:08:21]} Bxe5 {[%clk 00:52:42]} {[%emt
00:01:53]} 11. dxe5 {[%emt 00:00:40]} Qh4 {[%clk 00:53:04]} 12. Bd3 {[%clk
00:59:44]} {[%emt 00:11:19]} Nd7 {[%clk 00:52:26]} {[%emt 00:01:07]} 13. O-O
{[%clk 00:57:15]} {[%emt 00:03:00]} Nxe5 {[%clk 00:52:13]} {[%emt 00:00:42]} 14.
Bc2 {[%clk 00:57:32]} {[%emt 00:00:13]} Be6 {[%clk 00:48:23]} {[%emt 00:04:20]}
15. Qc5 {[%clk 00:49:44]} {[%emt 00:08:18]} Qh5 {[%clk 00:43:52]} {[%emt
00:05:01]} 16. Be3 {[%clk 00:42:56]} {[%emt 00:07:19]} b6 {[%clk 00:34:08]}
{[%emt 00:10:13]} 17. Qe7 {[%clk 00:42:57]} {[%emt 00:00:28]} Rfe8 {[%clk
00:25:58]} {[%emt 00:08:41]} 18. Qg5 {[%clk 00:43:05]} {[%emt 00:00:22]} Qxg5
{[%clk 00:26:13]} {[%emt 00:00:16]} 19. Bxg5 {[%clk 00:43:33]} {[%emt
00:00:01]} Kg7 {[%clk 00:26:38]} {[%emt 00:00:05]} 20. f4 {[%clk 00:29:53]}
{[%emt 00:14:10]} f6 {[%clk 00:26:20]} {[%emt 00:00:47]} 21. Bh4 {[%clk
00:28:07]} {[%emt 00:02:17]} Nc4 {[%clk 00:26:13]} {[%emt 00:00:37]} 22. Rae1
{[%clk 00:25:58]} {[%emt 00:02:39]} a5 {[%clk 00:19:14]} {[%emt 00:07:29]} 23.
Rf2 {[%clk 00:15:00]} {[%emt 00:11:27]} a4 {[%clk 00:17:12]} {[%emt 00:02:32]}
24. Rfe2 {[%clk 00:10:52]} {[%emt 00:04:40]} Na3 {[%clk 00:09:47]} {[%emt
00:07:55]} 25. Bd3 {[%clk 00:07:26]} {[%emt 00:03:55]} Rad8 {[%clk 00:09:19]}
{[%emt 00:00:59]} 26. Re3 {[%clk 00:06:19]} {[%emt 00:01:36]} Bc4 {[%clk
00:08:58]} {[%emt 00:00:51]} 27. e5 {[%clk 00:05:24]} {[%emt 00:01:27]} Kf7
{[%clk 00:02:56]} {[%emt 00:06:31]} 28. Bxc4+ {[%clk 00:05:31]} {[%emt
00:00:23]} Nxc4 {[%clk 00:03:20]} {[%emt 00:00:05]} 29. Re4 {[%clk 00:05:58]}
{[%emt 00:00:03]} b5 {[%clk 00:02:52]} {[%emt 00:00:57]} 30. Bxf6 {[%clk
00:05:42]} {[%emt 00:00:46]} Rd3 {[%clk 00:03:08]} {[%emt 00:00:15]} 31. Bh4
{[%clk 00:03:24]} {[%emt 00:02:47]} Ke6 {[%clk 00:03:32]} {[%emt 00:00:07]} 32.
Rc1 {[%clk 00:01:34]} {[%emt 00:02:20]} Rd2 {[%clk 00:03:40]} {[%emt 00:00:21]}
33. Ra1 {[%clk 00:01:34]} {[%emt 00:00:32]} a3 {[%clk 00:03:31]} {[%emt
00:00:38]} 34. g4 {[%clk 00:01:37]} {[%emt 00:00:27]} Rf8 {[%clk 00:03:35]}
{[%emt 00:00:26]} 35. Bg3 {[%clk 00:00:34]} {[%emt 00:01:32]} Rfd8 {[%clk
00:04:01]} {[%emt 00:00:03]} 36. f5+ {[%clk 00:00:52]} {[%emt 00:00:13]} gxf5
{[%clk 00:04:23]} {[%emt 00:00:08]} 37. gxf5+ {[%clk 00:01:21]} Kxf5 {[%clk
00:04:48]} {[%emt 00:00:07]} 38. Rf4+ {[%clk 00:01:42]} {[%emt 00:00:08]} Ke6
{[%clk 00:04:53]} {[%emt 00:00:24]} 39. Rf6+ {[%clk 00:01:11]} {[%emt
00:01:02]} Kd5 {[%clk 00:04:31]} {[%emt 00:00:52]} 40. e6 {[%clk 00:01:01]}
{[%emt 00:00:40]} Re8 {[%clk 00:00:43]} {[%emt 00:04:18]} 41. Re1 {[%clk
00:27:05]} {[%emt 00:04:25]} Nb6 {[%clk 00:06:07]} {[%emt 00:25:06]} 42. e7
{[%clk 00:23:37]} {[%emt 00:04:00]} Nc8 {[%clk 00:02:00]} {[%emt 00:04:35]} 43.
Rf8 {[%clk 00:20:50]} {[%emt 00:03:18]} Rxe7 {[%clk 00:00:42]} {[%emt
00:01:48]} 44. Rd8+ {[%clk 00:20:26]} {[%emt 00:00:54]} Kc4 {[%clk 00:00:39]}
{[%emt 00:00:33]} 45. Rxd2 {[%clk 00:20:45]} {[%emt 00:00:10]} Kxc3 {[%clk
00:00:46]} {[%emt 00:00:24]} 46. Rd8 {[%clk 00:20:17]} {[%emt 00:00:57]} 1-0

[Event "Schack-SM 2024: Mastarklassen-elit"]
[Site "Fortnox Arena, Hejaregatan 5, Vaxjo, Sweden"]
[Date "2024.07.07"]
[Round "9.3"]
[White "Lundin, Jan"]
[Black "Cederstam, Carl"]
[Result "1-0"]
[TimeControl "90 minutes for 40 moves + 30 minutes for the rest of the game + 30 seconds per move from move one."]
[WhiteTitle "FM"]
[BlackTitle "FM"]
[WhiteElo "2246"]
[BlackElo "2278"]

1. e4 {[%clk 01:30:43]} {[%emt 00:00:15]} e5 {[%clk 01:29:51]} {[%emt
00:01:12]} 2. f4 {[%clk 01:30:03]} {[%emt 00:01:09]} exf4 {[%clk 01:28:41]}
{[%emt 00:01:39]} 3. Nf3 {[%clk 01:30:26]} {[%emt 00:00:07]} Nf6 {[%clk
01:28:40]} {[%emt 00:00:30]} 4. e5 {[%clk 01:30:22]} {[%emt 00:00:36]} Nh5
{[%clk 01:29:04]} {[%emt 00:00:06]} 5. Qe2 {[%clk 01:30:36]} {[%emt 00:00:16]}
Be7 {[%clk 01:27:52]} {[%emt 00:01:40]} 6. d4 {[%emt 00:08:32]} d5 {[%clk
01:21:13]} 7. exd6 {[%clk 01:29:52]} {[%emt 00:00:22]} Qxd6 {[%clk 01:17:44]}
{[%emt 00:03:59]} 8. Qb5+ {[%clk 01:29:39]} {[%emt 00:00:42]} Nc6 {[%clk
01:18:09]} {[%emt 00:00:06]} 9. Qxh5 {[%clk 01:29:23]} {[%emt 00:00:46]} Nxd4
{[%clk 01:18:34]} {[%emt 00:00:05]} 10. Nxd4 {[%clk 01:20:32]} {[%emt
00:09:21]} Qxd4 {[%clk 01:18:46]} {[%emt 00:00:17]} 11. Nc3 {[%clk 01:20:20]}
{[%emt 00:00:43]} g6 {[%clk 01:16:52]} {[%emt 00:02:24]} 12. Qf3 {[%clk
01:12:21]} {[%emt 00:08:28]} Bb4 {[%clk 00:36:40]} {[%emt 00:40:42]} 13. Bd2
{[%clk 01:07:51]} {[%emt 00:05:00]} O-O {[%clk 00:34:36]} {[%emt 00:02:34]} 14.
O-O-O {[%clk 01:06:00]} {[%emt 00:02:21]} g5 {[%clk 00:32:15]} {[%emt
00:02:51]} 15. h4 {[%clk 01:05:11]} {[%emt 00:01:19]} f6 {[%clk 00:31:28]}
{[%emt 00:01:17]} 16. Qh5 {[%clk 00:52:59]} {[%emt 00:12:42]} g4 {[%clk
00:31:11]} {[%emt 00:00:47]} 17. Qd5+ {[%clk 00:51:48]} {[%emt 00:01:41]} Kh8
{[%clk 00:30:17]} {[%emt 00:01:24]} 1-0

[Event "Schack-SM 2024: Mastarklassen-elit"]
[Site "Fortnox Arena, Hejaregatan 5, Vaxjo, Sweden"]
[Date "2024.07.07"]
[Round "9.4"]
[White "Crevatin, Leo"]
[Black "Thorn, Eric"]
[Result "1/2-1/2"]
[TimeControl "90 minutes for 40 moves + 30 minutes for the rest of the game + 30 seconds per move from move one."]
[WhiteTitle "FM"]
[BlackTitle "FM"]
[WhiteElo "2235"]
[BlackElo "2359"]

1. d4 {[%clk 01:30:57]} {[%emt 00:00:02]} Nf6 {[%clk 01:30:53]} {[%emt
00:00:08]} 2. c4 {[%clk 01:31:22]} {[%emt 00:00:06]} e6 {[%clk 01:31:17]}
{[%emt 00:00:05]} 3. Nf3 {[%clk 01:31:48]} {[%emt 00:00:04]} d5 {[%clk
01:30:45]} {[%emt 00:01:03]} 4. g3 {[%clk 01:32:10]} {[%emt 00:00:07]} dxc4
{[%clk 01:29:13]} {[%emt 00:02:02]} 5. Bg2 {[%clk 01:32:01]} {[%emt 00:00:40]}
c5 {[%clk 01:28:15]} {[%emt 00:01:27]} 6. O-O {[%clk 01:31:38]} {[%emt
00:00:53]} Nc6 {[%clk 01:27:52]} {[%emt 00:00:53]} 7. dxc5 {[%clk 01:29:22]}
{[%emt 00:02:46]} Bd7 {[%clk 01:23:00]} {[%emt 00:05:21]} 8. Nbd2 {[%clk
01:25:47]} {[%emt 00:04:05]} c3 {[%clk 01:20:25]} {[%emt 00:03:05]} 9. bxc3
{[%clk 01:20:19]} {[%emt 00:05:59]} Bxc5 {[%clk 01:20:41]} {[%emt 00:00:13]} 10.
Nb3 {[%clk 01:14:26]} {[%emt 00:06:21]} Be7 {[%clk 01:21:01]} {[%emt 00:00:11]}
11. Nfd4 {[%clk 01:08:06]} {[%emt 00:06:50]} O-O {[%clk 01:08:01]} {[%emt
00:13:30]} 12. Bb2 {[%clk 01:00:10]} {[%emt 00:08:27]} Qc7 {[%clk 01:04:13]}
{[%emt 00:04:18]} 13. Nb5 {[%clk 00:43:47]} {[%emt 00:16:53]} Qb8 {[%clk
01:02:31]} {[%emt 00:02:11]} 14. c4 {[%clk 00:38:57]} {[%emt 00:05:21]} a6
{[%clk 00:58:04]} {[%emt 00:04:57]} 15. N5d4 {[%clk 00:34:41]} {[%emt
00:04:46]} Rd8 {[%clk 00:56:30]} {[%emt 00:02:04]} 16. Qc2 {[%clk 00:33:47]}
{[%emt 00:01:25]} Qc7 {[%clk 00:55:44]} {[%emt 00:01:14]} 17. Rac1 {[%clk
00:33:38]} {[%emt 00:00:40]} Rac8 {[%clk 00:52:17]} {[%emt 00:03:57]} 18. Qb1
{[%clk 00:33:01]} {[%emt 00:01:08]} b6 {[%clk 00:42:44]} {[%emt 00:10:03]} 19.
c5 {[%clk 00:27:15]} {[%emt 00:06:17]} b5 {[%clk 00:41:12]} {[%emt 00:02:02]}
20. e3 {[%clk 00:20:56]} {[%emt 00:06:47]} Be8 {[%clk 00:39:22]} {[%emt
00:02:20]} 21. Bc3 {[%clk 00:19:58]} {[%emt 00:01:29]} Nd5 {[%clk 00:26:31]}
{[%emt 00:13:21]} 22. Nxc6 {[%clk 00:18:11]} {[%emt 00:02:16]} Qxc6 {[%clk
00:26:57]} {[%emt 00:00:04]} 23. Ba5 {[%clk 00:17:44]} {[%emt 00:00:57]} Rd7
{[%clk 00:26:40]} {[%emt 00:00:47]} 24. Rfd1 {[%clk 00:15:28]} {[%emt
00:02:47]} Qa8 {[%clk 00:21:23]} {[%emt 00:05:47]} 25. Rd2 {[%clk 00:12:32]}
{[%emt 00:03:26]} Rb7 {[%clk 00:15:52]} {[%emt 00:06:00]} 26. a3 {[%clk
00:11:06]} {[%emt 00:01:56]} Bc6 {[%clk 00:15:25]} {[%emt 00:00:57]} 27. Nd4
{[%clk 00:10:09]} {[%emt 00:01:26]} Rd7 {[%clk 00:14:40]} {[%emt 00:01:16]} 28.
Nxc6 {[%clk 00:06:59]} {[%emt 00:03:40]} Qxc6 {[%clk 00:14:44]} {[%emt
00:00:27]} 29. Bb6 {[%clk 00:06:21]} {[%emt 00:01:09]} Bd8 {[%clk 00:13:26]}
{[%emt 00:01:47]} 30. Bxd5 {[%clk 00:03:17]} {[%emt 00:03:34]} Rxd5 {[%clk
00:11:34]} {[%emt 00:02:23]} 31. Rxd5 {[%clk 00:03:14]} {[%emt 00:00:33]} exd5
{[%clk 00:09:49]} {[%emt 00:02:14]} 32. Bxd8 {[%clk 00:03:38]} {[%emt
00:00:06]} Rxd8 {[%clk 00:10:16]} {[%emt 00:00:04]} 33. Qb4 {[%clk 00:03:36]}
{[%emt 00:00:30]} h6 {[%clk 00:08:14]} {[%emt 00:02:33]} 34. a4 {[%clk
00:02:36]} {[%emt 00:01:30]} bxa4 {[%clk 00:06:17]} {[%emt 00:02:27]} 35. Ra1
{[%clk 00:03:01]} {[%emt 00:00:06]} Rc8 {[%clk 00:03:34]} {[%emt 00:03:12]} 36.
Qxa4 {[%clk 00:02:13]} {[%emt 00:01:18]} Qxa4 {[%clk 00:00:46]} {[%emt
00:03:19]} 37. Rxa4 {[%clk 00:02:42]} Rxc5 {[%clk 00:00:35]} {[%emt 00:00:41]}
38. Rxa6 {[%clk 00:03:07]} {[%emt 00:00:05]} Kf8 {[%clk 00:00:54]} {[%emt
00:00:10]} 39. Ra7 {[%clk 00:02:48]} {[%emt 00:00:50]} g6 {[%clk 00:00:35]}
{[%emt 00:00:48]} 40. Rd7 {[%clk 00:01:52]} {[%emt 00:01:27]} Ke8 {[%clk
00:00:49]} {[%emt 00:00:16]} 41. Ra7 {[%clk 00:02:00]} {[%emt 00:00:22]} h5
{[%clk 00:28:08]} {[%emt 00:03:11]} 42. h4 {[%clk 00:28:42]} {[%emt 00:03:47]}
d4 {[%clk 00:20:31]} {[%emt 00:08:08]} 43. exd4 {[%clk 00:28:28]} {[%emt
00:00:44]} Rc4 {[%clk 00:20:56]} {[%emt 00:00:05]} 44. d5 {[%clk 00:27:07]}
{[%emt 00:01:51]} Rc5 {[%clk 00:21:21]} {[%emt 00:00:05]} 45. d6 {[%clk
00:25:01]} {[%emt 00:02:36]} Rd5 {[%clk 00:21:45]} {[%emt 00:00:06]} 46. Re7+
{[%clk 00:20:24]} {[%emt 00:05:08]} Kf8 {[%clk 00:22:09]} {[%emt 00:00:07]} 47.
Rd7 {[%clk 00:20:40]} {[%emt 00:00:13]} Ke8 {[%clk 00:22:35]} {[%emt 00:00:04]}
48. Re7+ {[%clk 00:21:02]} {[%emt 00:00:07]} Kf8 {[%clk 00:22:58]} {[%emt
00:00:07]} 49. Rd7 {[%clk 00:21:28]} {[%emt 00:00:05]} Ke8 {[%clk 00:23:19]}
{[%emt 00:00:08]} 50. Re7+ {[%clk 00:21:54]} {[%emt 00:00:04]} Kf8 {[%clk
00:23:40]} {[%emt 00:00:10]} 1/2-1/2

[Event "Schack-SM 2024: Mastarklassen-elit"]
[Site "Fortnox Arena, Hejaregatan 5, Vaxjo, Sweden"]
[Date "2024.07.07"]
[Round "9.5"]
[White "Wiedenkeller, Michael"]
[Black "Carlsson, Ludvig"]
[Result "1-0"]
[TimeControl "90 minutes for 40 moves + 30 minutes for the rest of the game + 30 seconds per move from move one."]
[WhiteTitle "IM"]
[BlackTitle "IM"]
[WhiteElo "2417"]
[BlackElo "2335"]

1. d4 {[%clk 01:30:48]} {[%emt 00:00:12]} f5 {[%clk 01:30:53]} {[%emt
00:00:08]} 2. c4 {[%clk 01:29:30]} {[%emt 00:01:48]} Nf6 {[%clk 01:31:14]}
{[%emt 00:00:08]} 3. Nc3 {[%clk 01:29:55]} {[%emt 00:00:05]} d6 {[%clk
01:31:01]} {[%emt 00:00:43]} 4. Nf3 {[%clk 01:25:07]} {[%emt 00:05:17]} g6
{[%clk 01:31:18]} {[%emt 00:00:14]} 5. g3 {[%clk 01:25:06]} {[%emt 00:00:31]}
Bg7 {[%clk 01:31:40]} {[%emt 00:00:08]} 6. Bg2 {[%clk 01:25:31]} {[%emt
00:00:04]} O-O {[%clk 01:32:03]} {[%emt 00:00:08]} 7. O-O {[%clk 01:25:43]}
{[%emt 00:00:19]} c6 {[%clk 01:32:27]} {[%emt 00:00:04]} 8. d5 {[%clk
01:24:36]} {[%emt 00:01:38]} e5 {[%clk 01:32:37]} {[%emt 00:00:20]} 9. dxe6
{[%clk 01:21:34]} {[%emt 00:03:32]} Bxe6 {[%clk 01:33:00]} {[%emt 00:00:07]} 10.
Qd3 {[%clk 01:20:18]} {[%emt 00:01:45]} Re8 {[%clk 01:33:24]} {[%emt 00:00:07]}
11. Ng5 {[%clk 01:06:53]} {[%emt 00:13:54]} Bc8 {[%clk 01:33:25]} {[%emt
00:00:30]} 12. Rd1 {[%clk 00:54:22]} {[%emt 00:13:02]} h6 {[%clk 01:31:06]}
{[%emt 00:02:48]} 13. Nf3 {[%clk 00:51:29]} {[%emt 00:03:23]} Na6 {[%clk
01:31:19]} {[%emt 00:00:18]} 14. Be3 {[%clk 00:41:40]} {[%emt 00:10:19]} Be6
{[%clk 01:21:04]} {[%emt 00:10:45]} 15. Qd2 {[%clk 00:37:19]} {[%emt 00:04:51]}
Kh7 {[%clk 01:16:28]} {[%emt 00:05:06]} 16. b3 {[%clk 00:32:16]} {[%emt
00:05:32]} Nc5 {[%clk 01:04:54]} {[%emt 00:12:05]} 17. Bd4 {[%clk 00:31:32]}
{[%emt 00:01:15]} Qe7 {[%clk 01:03:44]} {[%emt 00:01:40]} 18. Rac1 {[%clk
00:30:28]} {[%emt 00:01:33]} a5 {[%clk 01:00:03]} {[%emt 00:04:10]} 19. Qc2
{[%clk 00:26:06]} {[%emt 00:04:53]} Bf7 {[%clk 00:58:24]} {[%emt 00:02:09]} 20.
h3 {[%clk 00:24:06]} {[%emt 00:02:31]} Bf8 {[%clk 00:41:14]} {[%emt 00:17:39]}
21. Re1 {[%clk 00:22:32]} {[%emt 00:02:02]} Bg7 {[%clk 00:40:36]} {[%emt
00:01:11]} 22. Rcd1 {[%clk 00:22:42]} {[%emt 00:00:17]} Ne6 {[%clk 00:39:54]}
{[%emt 00:01:14]} 23. Be3 {[%clk 00:22:45]} {[%emt 00:00:27]} Nh5 {[%clk
00:40:10]} {[%emt 00:00:15]} 24. Bc1 {[%clk 00:22:03]} {[%emt 00:01:12]} Nc5
{[%clk 00:32:26]} {[%emt 00:08:13]} 25. Nd4 {[%clk 00:20:44]} {[%emt 00:01:50]}
Nf6 {[%clk 00:31:08]} {[%emt 00:01:47]} 26. e3 {[%clk 00:20:30]} {[%emt
00:00:46]} Nfe4 {[%clk 00:30:13]} {[%emt 00:01:24]} 27. Bb2 {[%clk 00:19:26]}
{[%emt 00:01:34]} Bg8 {[%clk 00:24:30]} {[%emt 00:06:14]} 28. a3 {[%clk
00:16:13]} {[%emt 00:03:44]} Bf7 {[%clk 00:24:11]} {[%emt 00:00:48]} 29. Bf1
{[%clk 00:15:42]} {[%emt 00:01:02]} Qf6 {[%clk 00:20:58]} {[%emt 00:03:43]} 30.
Nde2 {[%clk 00:14:14]} {[%emt 00:01:58]} Ng5 {[%clk 00:20:50]} {[%emt
00:00:38]} 31. Bg2 {[%clk 00:14:03]} {[%emt 00:00:40]} Qe7 {[%clk 00:20:55]}
{[%emt 00:00:25]} 32. Nf4 {[%clk 00:13:34]} {[%emt 00:00:58]} Nd7 {[%clk
00:20:54]} {[%emt 00:00:32]} 33. h4 {[%clk 00:13:04]} {[%emt 00:01:02]} Ne6
{[%clk 00:20:56]} {[%emt 00:00:27]} 34. Nxe6 {[%clk 00:10:41]} {[%emt
00:02:53]} Bxe6 {[%clk 00:19:05]} {[%emt 00:02:21]} 35. h5 {[%clk 00:06:13]}
{[%emt 00:04:58]} gxh5 {[%clk 00:19:09]} {[%emt 00:00:25]} 36. Bh3 {[%clk
00:06:21]} {[%emt 00:00:23]} Ne5 {[%clk 00:18:28]} {[%emt 00:01:10]} 37. Bxf5+
{[%clk 00:06:16]} {[%emt 00:00:35]} Kh8 {[%clk 00:18:57]} {[%emt 00:00:02]} 38.
Kg2 {[%clk 00:04:47]} {[%emt 00:01:58]} h4 {[%clk 00:16:50]} {[%emt 00:02:37]}
39. Ne2 {[%clk 00:04:36]} {[%emt 00:00:41]} hxg3 {[%clk 00:05:20]} {[%emt
00:12:00]} 40. Nxg3 {[%clk 00:02:59]} {[%emt 00:02:07]} Rf8 {[%clk 00:05:33]}
{[%emt 00:00:17]} 41. f4 {[%clk 00:22:36]} {[%emt 00:10:53]} Ng4 {[%clk
00:19:08]} {[%emt 00:16:56]} 42. Bxg7+ {[%clk 00:13:33]} {[%emt 00:09:33]} Kxg7
{[%clk 00:19:17]} {[%emt 00:00:20]} 43. Nh5+ {[%clk 00:11:57]} {[%emt
00:02:07]} Kh8 {[%clk 00:17:07]} {[%emt 00:02:40]} 44. Bxg4 {[%clk 00:09:32]}
{[%emt 00:02:54]} Rg8 {[%clk 00:16:28]} {[%emt 00:01:11]} 45. Qc3+ {[%clk
00:09:43]} {[%emt 00:00:19]} Kh7 {[%clk 00:16:45]} {[%emt 00:00:13]} 46. Nf6+
{[%clk 00:09:46]} {[%emt 00:00:27]} Kg6 {[%clk 00:17:14]} {[%emt 00:00:02]} 47.
Nxg8 {[%clk 00:08:00]} {[%emt 00:02:15]} Rxg8 {[%clk 00:16:13]} {[%emt
00:01:30]} 48. Bxe6 {[%clk 00:07:52]} {[%emt 00:00:38]} Qxe6 {[%clk 00:16:38]}
{[%emt 00:00:06]} 49. Kf2 {[%clk 00:08:01]} {[%emt 00:00:21]} Kf7 {[%clk
00:15:45]} {[%emt 00:01:22]} 50. Rg1 {[%clk 00:07:50]} {[%emt 00:00:41]} Rg4
{[%clk 00:16:12]} {[%emt 00:00:03]} 51. Qd3 {[%clk 00:07:42]} {[%emt 00:00:37]}
1-0